bitfinex/quotes_ETHUSD_20250722
["timestamp","ask_amount","ask_price","bid_price","bid_amount"]
[1753188914743,7.97632093,3705.4,3703.4,0.2802543]
[1753188914744,0.752,3704.7,3703.7,0.7839]
[1753188914976,4.167,3704.6,3704.1,0.1344]
[1753188915180,2.69941962,3704.5,3704.4,0.1344]
[1753188915384,2.69973368,3704.1,3704.0,0.1344]
[1753188915585,4.168,3704.1,3704.0,0.1344]
[1753188915777,0.8061,3704.3,3704.0,0.1344]
[1753188915973,4.168,3704.1,3704.0,0.1344]
[1753188916359,2.69990642,3703.9,3703.4,1.1057543]
[1753188916550,2.69980695,3704.0,3703.8,0.1344]
[1753188916758,4.6218,3704.1,3703.8,0.1344]
[1753188917077,2.6997914,3704.0,3703.8,0.1344]
[1753188917278,2.6998569,3703.9,3703.8,0.1344]
[1753188917475,2.6998569,3703.9,3703.4,0.2802543]
[1753188917476,2.7001485,3703.5,3703.4,0.2802543]
[1753188917666,2.80469854,3703.5,3703.4,0.2802543]
[1753188918169,6.56099854,3703.5,3703.4,0.2802543]
[1753188918681,10.72999854,3703.5,3703.4,0.2802543]
[1753188918881,5.37619854,3703.5,3703.4,0.2802543]
[1753188919068,5.80469854,3703.5,3703.4,0.2802543]
[1753188919595,9.8681485,3703.5,3703.4,0.2802543]
[1753188919892,10.2966485,3703.5,3703.4,0.4146543]
[1753188920099,11.67960423,3703.5,3703.4,0.2802543]
[1753188920392,11.81400423,3703.5,3703.4,0.2802543]
[1753188922838,7.64600423,3703.5,3703.4,0.2802543]
[1753188923015,11.81100423,3703.5,3703.4,0.2802543]
[1753188923221,5.8345485,3703.5,3703.4,0.2802543]
[1753188923426,25.7440485,3703.5,3703.4,0.2802543]
[1753188925784,25.7430485,3703.5,3703.4,0.2802543]
[1753188926025,25.7430485,3703.5,3703.4,0.53206456]
[1753188926198,25.7430485,3703.5,3703.4,0.53306456]
[1753188926407,13.94114026,3703.5,3703.4,0.53306456]
[1753188926622,13.94014026,3703.5,3703.4,0.53306456]
[1753188926811,28.44014026,3703.5,3703.4,0.53306456]
[1753188927009,28.44014026,3703.5,3703.4,0.2812543]
[1753188927212,28.44014026,3703.5,3703.4,0.53298905]
[1753188928065,21.5790485,3703.5,3703.4,0.53298905]
[1753188928354,9.8631485,3703.5,3703.4,0.53298905]
[1753188929014,6.1286485,3703.5,3703.4,0.53298905]
[1753188929214,10.2916485,3703.5,3703.4,0.53298905]
[1753188930854,5.7001485,3703.5,3703.4,0.53298905]
[1753188931057,4.163,3703.5,3703.4,1.33308905]
[1753188931349,0.1344,3703.8,3703.4,1.47983796]
[1753188931553,0.002,3704.0,3703.7,0.1344]
[1753188931753,0.002,3704.0,3703.8,0.25173475]
[1753188932049,0.002,3704.0,3703.9,0.38613475]
[1753188932784,2.70178401,3704.0,3703.9,0.38613475]
[1753188932950,0.002,3704.0,3703.9,0.38613475]
[1753188933314,0.002,3704.0,3703.9,1.5061552]
[1753188933517,0.002,3704.0,3703.9,1.15083475]
[1753188934136,0.002,3704.0,3703.9,1.61783475]
[1753188934337,2.69949619,3704.4,3703.9,1.61783475]
[1753188934548,2.69949619,3704.4,3704.0,0.71873475]
[1753188934730,4.163,3704.4,3704.3,0.1344]
[1753188934924,6.86249249,3704.4,3704.3,0.38613475]
[1753188935363,4.163,3704.4,3704.3,0.38613475]
[1753188935967,6.86249249,3704.4,3704.3,0.38613475]
[1753188936629,4.163,3704.4,3704.3,0.38613475]
[1753188936857,3.0,3704.7,3704.3,0.38613475]
[1753188937063,4.162,3704.6,3704.5,0.7727]
[1753188937236,2.69918833,3704.9,3704.6,0.1344]
[1753188937443,2.69918833,3704.9,3704.7,0.25173475]
[1753188937444,7.28970103,3704.8,3704.7,0.25173475]
[1753188937644,11.11510103,3704.8,3704.7,0.25173475]
[1753188937836,11.24950103,3704.8,3704.7,0.25173475]
[1753188938945,2.69963824,3704.2,3704.1,0.1344]
[1753188939141,6.86163824,3704.2,3704.1,0.38624278]
[1753188940761,7.29013824,3704.2,3704.1,0.38624278]
[1753188940962,9.08610719,3704.2,3704.1,0.25184278]
[1753188941758,4.92410719,3704.2,3704.1,0.25184278]
[1753188942071,7.29013824,3704.2,3704.1,0.25184278]
[1753188942256,10.29013824,3704.2,3704.1,0.25184278]
[1753188942564,11.09933824,3704.2,3704.1,0.25184278]
[1753188942935,25.59933824,3704.2,3704.1,0.25184278]
[1753188943838,21.43733824,3704.2,3704.1,0.25184278]
[1753188944158,2.69991689,3703.9,3703.4,0.4156543]
[1753188944357,6.86195116,3703.8,3703.5,0.25204939]
[1753188944669,2.7000027,3703.7,3703.6,0.25204939]
[1753188945762,6.86195507,3703.8,3703.6,0.25204939]
[1753188945942,2.69995507,3703.8,3703.7,0.25204939]
[1753188946142,4.162,3703.8,3703.7,0.25204939]
[1753188946342,6.8619298,3703.8,3703.7,0.25204939]
[1753188946848,14.5,3704.2,3703.7,0.25204939]
[1753188947047,2.69935585,3704.6,3703.8,0.71904939]
[1753188947251,4.162,3704.5,3704.0,0.1344]
[1753188947433,2.69957535,3704.3,3704.1,0.25204939]
[1753188947639,2.69957535,3704.3,3704.2,0.25204939]
[1753188947860,7.162,3704.3,3704.2,0.25204939]
[1753188948057,17.1993572,3704.6,3704.2,0.25204939]
[1753188948258,4.162,3704.5,3704.3,0.25204939]
[1753188948445,17.1993572,3704.6,3704.4,0.25204939]
[1753188948648,17.1993572,3704.6,3704.5,0.25204939]
[1753188948969,24.3613572,3704.6,3704.5,0.25204939]
[1753188949372,21.662,3704.6,3704.5,0.25204939]
[1753188949574,14.5,3704.6,3704.5,0.25204939]
[1753188949771,2.70071307,3705.5,3704.5,0.72524939]
[1753188949772,1.14026625,3705.1,3704.5,0.72524939]
[1753188950075,4.162,3705.0,3704.6,2.95138304]
[1753188950271,0.002,3705.1,3704.9,0.1344]
[1753188950574,0.002,3705.1,3705.0,1.49814939]
[1753188950750,0.002,3705.1,3705.0,4.19720472]
[1753188950954,0.002,3705.1,3705.0,1.63254939]
[1753188951277,0.002,3705.1,3705.0,5.03469809]
[1753188952273,0.002,3705.1,3705.0,2.33564276]
[1753188952575,0.002,3705.1,3705.0,0.38644939]
[1753188953558,0.002,3705.1,3705.0,0.85964939]
[1753188953759,4.161,3705.3,3705.0,0.85964939]
[1753188953954,0.002,3705.5,3705.1,0.72524939]
[1753188954165,4.161,3705.4,3705.2,0.72524939]
[1753188954372,4.161,3705.4,3705.3,0.25204939]
[1753188954771,2.70071703,3705.5,3705.3,0.25204939]
[1753188954966,6.86171703,3705.5,3705.4,0.25204939]
[1753188956469,7.29501703,3705.5,3705.4,0.25204939]
[1753188956651,6.86171703,3705.5,3705.4,0.25204939]
[1753188957054,7.29501703,3705.5,3705.4,0.25204939]
[1753188957369,0.002,3705.5,3705.4,0.25204939]
[1753188957684,4.162,3705.5,3705.4,0.25204939]
[1753188957853,0.002,3705.5,3705.4,0.25204939]
[1753188958245,4.162,3705.5,3705.4,0.25204939]
[1753188958586,0.002,3705.5,3705.4,1.03414939]
[1753188958883,6.86069113,3705.5,3705.4,1.03414939]
[1753188959046,2.70069113,3705.5,3705.4,1.03414939]
[1753188959249,2.70069113,3705.5,3705.4,0.38644939]
[1753188959962,3.13399113,3705.5,3705.4,0.25204939]
[1753188960164,4.13345085,3705.5,3705.4,0.25204939]
[1753188960347,6.89659113,3705.5,3705.4,0.25204939]
[1753188960550,2.69941962,3704.5,3704.1,0.8134]
[1753188960752,2.69956536,3704.3,3703.8,0.8134]
[1753188961009,2.69956536,3704.3,3704.2,0.41459377]
[1753188961282,10.29286536,3704.3,3704.2,0.28019377]
[1753188961506,13.77675712,3704.3,3704.2,0.28019377]
[1753188961852,2.7001485,3703.5,3703.4,0.001]
[1753188962051,6.8601485,3703.5,3703.4,0.001]
[1753188962859,2.7001485,3703.5,3703.4,0.001]
[1753188963472,6.8601485,3703.5,3703.4,0.001]
[1753188963993,42.09219948,3703.5,3703.4,1e-08]
[1753188964419,56.59219948,3703.5,3703.4,1e-08]
[1753188964721,65.11852041,3703.5,3703.4,1e-08]
[1753188966015,65.11852041,3703.5,3702.6,0.001]
[1753188966016,3.51183189,3702.7,3702.6,0.001]
[1753188966313,41.22283189,3702.7,3702.6,1e-08]
[1753188966479,11.65613189,3702.7,3702.6,1e-08]
[1753188966686,26.15613189,3702.7,3702.6,1e-08]
[1753188966920,25.60613189,3702.7,3702.6,1e-08]
[1753188967069,26.85915805,3702.7,3702.6,1e-08]
[1753188967718,27.40915805,3702.7,3702.6,1e-08]
[1753188967868,36.38520483,3702.6,3702.5,1e-08]
[1753188968070,36.81850483,3702.6,3702.5,1e-08]
[1753188969084,5.83520483,3702.6,3702.5,1e-08]
[1753188969290,9.99620483,3702.6,3702.5,1e-08]
[1753188969612,3.0,3702.6,3702.5,1e-08]
[1753188969904,4.161,3702.6,3702.5,1e-08]
[1753188970223,0.1344,3702.8,3702.5,1e-08]
[1753188970370,2.70031072,3703.3,3702.6,2.70080483]
[1753188970571,0.1344,3703.5,3702.9,0.1344]
[1753188970815,2.70030762,3703.3,3702.9,0.1344]
[1753188971126,18.661,3703.4,3703.0,0.4732]
[1753188971127,14.5,3703.4,3703.0,0.4732]
[1753188971421,14.5,3703.4,3703.2,0.1344]
[1753188971565,4.161,3703.6,3703.2,0.6076]
[1753188971767,6.86108634,3703.6,3703.2,0.6076]
[1753188971998,6.86108634,3703.6,3703.2,0.4732]
[1753188971999,18.661,3703.6,3703.2,0.4732]
[1753188972213,5.70018253,3703.5,3703.2,0.4732]
[1753188972373,3.0,3703.5,3703.2,0.4732]
[1753188972568,5.70017487,3703.5,3703.3,0.25064879]
[1753188972874,5.70017487,3703.5,3703.4,0.25064879]
[1753188972875,8.39926663,3703.5,3703.4,0.25064879]
[1753188973100,12.56026663,3703.5,3703.4,0.25064879]
[1753188973305,5.42639176,3703.5,3703.4,0.25064879]
[1753188973593,2.7273,3703.5,3703.1,0.1344]
[1753188973796,2.7273,3703.5,3703.2,0.25060254]
[1753188974074,2.7273,3703.5,3703.4,0.1344]
[1753188974268,5.4274485,3703.5,3703.4,0.25060254]
[1753188974905,14.9333,3703.7,3703.4,0.25060254]
[1753188975108,2.7000756,3703.6,3703.5,0.25060254]
[1753188975413,5.7000756,3703.6,3703.5,0.25060254]
[1753188975617,6.1333756,3703.6,3703.5,0.25060254]
[1753188977101,0.002,3704.0,3703.5,1.00540254]
[1753188977295,0.002,3704.0,3703.6,0.25060254]
[1753188977505,0.002,3704.0,3703.7,0.25060254]
[1753188977691,0.002,3704.0,3703.8,0.25060254]
[1753188978020,0.002,3704.0,3703.9,0.25060254]
[1753188978021,5.7018037,3704.0,3703.9,0.25060254]
[1753188979013,6.1534037,3704.0,3703.9,0.25060254]
[1753188979210,10.3284037,3704.0,3703.9,0.25060254]
[1753188979506,13.02749546,3704.0,3703.9,0.25060254]
[1753188979897,8.85249546,3704.0,3703.9,0.25060254]
[1753188980098,8.40089546,3704.0,3703.9,0.25060254]
[1753188980273,5.70109176,3704.0,3703.9,0.25060254]
[1753188980591,5.70178401,3704.0,3703.9,0.25060254]
[1753188980919,3.002,3704.0,3703.9,0.25060254]
[1753188981273,5.70178401,3704.0,3703.9,0.25060254]
[1753188981912,6.15338401,3704.0,3703.9,0.25060254]
[1753188982209,8.85247577,3704.0,3703.9,0.25060254]
[1753188983008,13.02947577,3704.0,3703.9,0.25060254]
[1753188984179,12.57787577,3704.0,3703.9,0.25060254]
[1753188984575,10.33038401,3704.0,3703.9,0.25060254]
[1753188984896,25.63258401,3704.0,3703.9,0.25060254]
[1753188986293,26.18258401,3704.0,3703.9,0.25060254]
[1753188986693,2.70058602,3702.9,3702.8,0.8181]
[1753188986894,5.69989972,3703.9,3702.5,0.77800001]
[1753188987123,0.1344,3703.5,3702.8,0.1344]
[1753188987327,3.1344,3703.5,3703.1,0.9124]
[1753188987820,5.70001158,3703.7,3703.2,0.4315]
[1753188988023,3.0,3703.7,3703.2,2.70035592]
[1753188988226,3.0,3703.8,3703.3,0.4315]
[1753188988448,2.70005029,3703.7,3703.4,0.1344]
[1753188988592,2.69986167,3703.9,3703.4,0.1344]
[1753188988791,3.1364,3704.0,3703.5,0.4315]
[1753188989015,3.0,3703.7,3703.5,0.4315]
[1753188989602,3.0,3703.8,3703.4,0.1344]
[1753188989802,3.1364,3704.0,3703.4,0.1344]
[1753188990010,0.1364,3704.0,3703.4,0.1344]
[1753188990221,3.1364,3704.0,3703.4,0.1344]
[1753188990429,2.69990698,3703.9,3703.4,0.1344]
[1753188990938,2.69990698,3703.9,3703.5,0.4315]
[1753188991146,3.0,3703.9,3703.5,0.4315]
[1753188991324,3.0,3703.7,3703.5,0.4315]
[1753188991640,3.0,3703.7,3703.4,0.1344]
[1753188991641,2.70001893,3703.7,3703.4,0.1344]
[1753188991937,3.0,3703.9,3703.4,0.1344]
[1753188992112,0.73124,3703.8,3703.4,0.1344]
[1753188992436,5.7001485,3703.5,3703.4,0.1344]
[1753188992636,6.1517485,3703.5,3703.4,0.001]
[1753188993047,5.7001485,3703.5,3703.4,0.001]
[1753188993812,3.0,3703.5,3703.4,1.2436]
[1753188994015,0.002,3703.9,3703.4,1.77238716]
[1753188994257,0.002,3703.9,3703.5,3.13160434]
[1753188994548,0.002,3703.9,3703.5,0.4315]
[1753188994849,2.69995522,3703.8,3703.6,0.4315]
[1753188995052,2.70187422,3703.9,3703.6,0.4315]
[1753188995253,2.69993457,3703.8,3703.4,0.9465]
[1753188995546,0.002,3703.9,3703.4,0.9465]
[1753188995852,0.002,3703.9,3703.5,3.13163928]
[1753188996052,0.002,3703.9,3703.6,2.70006635]
[1753188996250,0.002,3703.9,3703.6,0.83930664]
[1753188996558,0.002,3703.9,3703.8,0.781]
[1753188997159,0.002,3703.9,3703.8,1.2125]
[1753188998791,0.002,3703.9,3703.8,4.19168839]
[1753188998928,0.002,3703.9,3703.8,8.3523891]
[1753189001284,0.002,3703.9,3703.8,1.4814593]
[1753189001441,0.002,3703.9,3703.8,8.3523891]
[1753189001659,0.002,3703.9,3703.8,1.4814593]
[1753189001842,0.002,3703.9,3703.8,5.2209593]
[1753189002282,5.7018569,3703.9,3703.8,0.2522593]
[1753189002457,6.27224259,3703.9,3703.8,4.4232593]
[1753189002768,6.72384259,3703.9,3703.8,4.4232593]
[1753189002953,6.72384259,3703.9,3703.8,0.2522593]
[1753189003356,3.0,3703.8,3703.7,0.1344]
[1753189003667,3.0,3703.8,3703.7,0.38693475]
[1753189003668,5.6999298,3703.8,3703.7,0.38693475]
[1753189004053,5.37596823,3703.8,3703.7,0.38693475]
[1753189006977,5.37596823,3703.8,3703.7,0.25253475]
[1753189006978,5.82756823,3703.8,3703.7,0.25253475]
[1753189007149,6.75790394,3703.8,3703.7,0.25253475]
[1753189008075,2.83629447,3703.9,3703.7,0.25253475]
[1753189008281,0.002,3703.9,3703.8,0.22632675]
[1753189008435,0.002,3703.9,3703.8,0.65432675]
[1753189008869,0.002,3703.9,3703.8,1.45772675]
[1753189009073,0.002,3703.9,3703.8,4.70784371]
[1753189010070,0.002,3703.9,3703.8,1.78158716]
[1753189010434,0.002,3704.0,3703.8,5.05851625]
[1753189010637,0.002,3704.0,3703.9,8.6590569]
[1753189010865,0.002,3704.0,3703.9,11.6590569]
[1753189011053,0.002,3704.0,3703.9,14.21761327]
[1753189011777,0.002,3704.7,3704.6,2.69934675]
[1753189011972,0.002,3704.7,3704.6,8.24094675]
[1753189012175,0.002,3704.7,3704.6,8.80334675]
[1753189013072,0.002,3704.7,3704.6,12.80334675]
[1753189013274,0.002,3704.7,3704.6,14.35362482]
[1753189014041,0.002,3704.7,3704.6,0.1344]
[1753189014281,0.002,3704.7,3704.6,4.3024]
[1753189014576,0.1344,3705.3,3704.6,4.3024]
[1753189014577,2.69892554,3705.2,3704.6,4.3024]
[1753189015448,2.83326313,3705.3,3704.6,7.00173207]
[1753189015656,14.6344,3705.3,3704.6,4.3024]
[1753189015837,2.69900504,3705.1,3704.6,0.1344]
[1753189016041,0.002,3704.7,3704.6,0.1344]
[1753189016266,0.002,3704.7,3704.6,4.3024]
[1753189016891,0.002,3704.7,3704.6,7.00174675]
[1753189017177,0.002,3704.7,3704.6,7.42974675]
[1753189017380,0.002,3704.7,3704.6,8.52091966]
[1753189017680,0.002,3704.7,3704.6,9.33321966]
[1753189018180,0.002,3705.5,3705.4,2.69876396]
[1753189018354,0.002,3705.5,3705.4,7.69036396]
[1753189018676,0.002,3705.5,3705.4,8.11836396]
[1753189018880,0.002,3705.5,3705.4,6.50132139]
[1753189019080,0.002,3705.5,3705.4,9.20008535]
[1753189019280,0.002,3705.5,3705.4,2.33332139]
[1753189019596,0.002,3705.5,3705.4,4.168]
[1753189020083,2.70069113,3705.5,3705.4,4.17]
[1753189020287,2.70069113,3705.5,3705.4,4.42154588]
[1753189020582,0.002,3705.5,3705.4,4.42154588]
[1753189021090,2.70069113,3705.5,3705.4,0.25154588]
[1753189021250,3.14029113,3705.5,3705.4,4.42354588]
[1753189021453,7.47738082,3705.5,3705.4,0.25154588]
[1753189021791,2.69947326,3704.5,3704.3,4.177]
[1753189021988,2.69949249,3704.4,3704.3,4.177]
[1753189022164,2.69971113,3704.1,3704.0,4.0]
[1753189022494,2.69971113,3704.1,3704.0,8.177]
[1753189022688,2.69927389,3704.7,3704.0,8.177]
[1753189022689,2.69948869,3704.5,3704.0,8.177]
[1753189022861,2.69964245,3704.2,3704.0,8.177]
[1753189023069,2.69959109,3704.3,3704.0,8.177]
[1753189023395,2.69978285,3704.1,3703.6,1.11957565]
[1753189023596,3.7778,3705.0,3703.6,0.28927565]
[1753189023597,0.4396,3704.0,3703.6,0.28927565]
[1753189023774,2.7000027,3703.7,3703.6,4.177]
[1753189024482,2.37606565,3703.7,3703.6,4.177]
[1753189024691,2.81566565,3703.7,3703.6,4.177]
[1753189025062,0.8061,3704.7,3703.7,0.7747]
[1753189025294,2.69986272,3703.9,3703.7,0.7747]
[1753189025466,2.6999298,3703.8,3703.6,4.177]
[1753189025672,2.69990622,3703.9,3703.6,0.001]
[1753189025988,2.69979427,3704.0,3703.7,4.177]
[1753189026187,2.69973659,3704.1,3703.7,4.177]
[1753189026377,2.69971113,3704.1,3703.7,4.177]
[1753189026897,2.69991137,3703.9,3703.7,4.177]
[1753189027104,0.8061,3704.7,3703.8,0.428]
[1753189027271,2.69958579,3704.3,3703.8,0.428]
[1753189027798,2.69981264,3704.0,3703.7,4.67237]
[1753189028012,2.6997254,3704.1,3703.7,4.67237]
[1753189028218,2.69978401,3704.0,3703.9,0.1344]
[1753189028582,3.13938401,3704.0,3703.9,0.1344]
[1753189028901,3.13938401,3704.0,3703.9,4.3114]
[1753189029104,0.574,3704.4,3703.9,4.3114]
[1753189029424,2.69978401,3704.0,3703.9,4.3114]
[1753189029920,2.69978401,3704.0,3703.9,0.1344]
[1753189030386,2.6997393,3704.1,3703.9,0.1344]
[1753189030591,0.4396,3704.3,3703.9,0.1344]
[1753189030806,2.69956536,3704.3,3703.9,0.1344]
[1753189031132,3.13929723,3704.2,3703.9,0.1344]
[1753189031911,0.4396,3704.2,3703.9,0.1344]
[1753189032117,2.69948729,3704.5,3703.9,0.1344]
[1753189032412,2.69948729,3704.5,3704.1,0.1344]
[1753189032715,3.13908729,3704.5,3704.1,0.1344]
[1753189032883,0.4396,3704.5,3704.1,0.1344]
[1753189033084,0.8061,3704.7,3704.1,0.1344]
[1753189033283,2.69944182,3704.5,3704.1,0.1344]
[1753189033493,2.69953569,3704.4,3704.1,0.1344]
[1753189033712,2.69953569,3704.4,3704.2,0.25190018]
[1753189033917,2.69953569,3704.4,3704.3,0.25190018]
[1753189034300,3.50539569,3704.7,3704.3,0.25190018]
[1753189034614,2.69943436,3704.5,3704.4,0.25190018]
[1753189035290,3.13903436,3704.5,3704.4,0.25190018]
[1753189038591,8.56691596,3704.5,3704.4,0.25190018]
[1753189038827,8.70131596,3704.5,3704.4,0.25190018]
[1753189039026,12.87131596,3704.5,3704.4,0.25190018]
[1753189039640,13.66281596,3704.5,3704.4,0.25190018]
[1753189040092,28.16281596,3704.5,3704.4,0.25190018]
[1753189040293,13.66281596,3704.5,3704.4,0.25190018]
[1753189040893,9.86941962,3704.5,3704.4,0.25190018]
[1753189041089,10.31601962,3704.5,3704.4,0.25190018]
[1753189041293,11.08111962,3704.5,3704.4,0.25190018]
[1753189041771,25.58111962,3704.5,3704.4,0.25190018]
[1753189042047,9.86941962,3704.5,3704.4,0.25190018]
[1753189042196,2.69960699,3704.3,3704.1,0.1344]
[1753189042398,2.69960699,3704.3,3704.2,0.25205286]
[1753189042399,5.69956536,3704.3,3704.2,0.25205286]
[1753189042595,3.0,3704.3,3704.2,0.25205286]
[1753189042840,5.69956536,3704.3,3704.2,0.25205286]
[1753189043649,6.14616536,3704.3,3704.2,0.25205286]
[1753189045332,2.69963824,3704.2,3704.1,0.1344]
[1753189048140,2.69963824,3704.2,3703.6,0.001]
[1753189048141,2.69994014,3703.8,3703.6,0.001]
[1753189048434,2.69987864,3703.9,3703.8,0.1344]
[1753189048638,0.4466,3704.2,3703.8,0.1344]
[1753189049016,2.6998569,3703.9,3703.8,0.1344]
[1753189050135,2.69979931,3704.0,3703.8,0.1344]
[1753189050337,2.6998569,3703.9,3703.8,0.1344]
[1753189052356,2.69982706,3704.0,3703.8,0.1344]
[1753189052557,7.162,3704.3,3703.8,0.1344]
[1753189052558,2.6998569,3703.9,3703.8,0.1344]
[1753189053702,2.69981131,3704.0,3703.8,0.1344]
[1753189054953,2.6998569,3703.9,3703.8,0.1344]
[1753189057031,3.1464569,3703.9,3703.8,0.1344]
[1753189057237,0.4466,3703.9,3703.8,0.1344]
[1753189057408,18.4344496,3704.2,3703.8,0.1344]
[1753189057605,2.6998569,3703.9,3703.8,0.1344]
[1753189057810,0.4466,3704.2,3703.8,0.1344]
[1753189058127,3.0,3704.3,3703.9,0.4495]
[1753189058443,2.69969633,3704.2,3704.0,0.5839]
[1753189058612,2.37578524,3704.2,3704.1,0.2528174]
[1753189058964,9.86159678,3704.3,3704.1,0.2528174]
[1753189059158,9.86159678,3704.3,3704.2,0.2528174]
[1753189060875,7.162,3704.3,3704.2,0.2528174]
[1753189061708,0.002,3704.5,3704.2,0.2528174]
[1753189061933,0.002,3704.5,3704.3,0.2528174]
[1753189062132,0.002,3704.5,3704.4,0.2528174]
[1753189062445,0.002,3704.5,3704.4,0.8367174]
[1753189062751,0.002,3704.5,3704.4,3.53620989]
[1753189063074,0.002,3704.5,3704.4,4.32350989]
[1753189063239,0.80851527,3704.8,3704.6,2.69931618]
[1753189063413,0.80851527,3704.8,3704.7,0.2528174]
[1753189063609,0.80851527,3704.8,3704.7,0.3872174]
[1753189063831,0.80851527,3704.8,3704.7,3.53599129]
[1753189064237,0.80851527,3704.8,3704.7,0.8367174]
[1753189064747,0.80851527,3704.8,3704.7,0.3872174]
[1753189066447,0.80851527,3704.8,3704.7,0.38706014]
[1753189066759,3.5077163,3704.8,3704.7,0.25266014]
[1753189066963,5.79489359,3704.8,3704.7,0.25266014]
[1753189067260,10.09129359,3704.8,3704.7,0.25266014]
[1753189067461,24.59129359,3704.8,3704.7,0.25266014]
[1753189067612,4.97051527,3704.8,3704.7,0.25266014]
[1753189067815,0.80851527,3704.8,3704.7,3.54063403]
[1753189068009,0.002,3705.3,3704.7,0.84136014]
[1753189068214,2.70087967,3705.3,3705.1,0.1344]
[1753189068447,2.70087967,3705.3,3705.2,0.25266014]
[1753189069127,12.3162389,3705.3,3705.2,0.25266014]
[1753189069457,2.69927389,3704.7,3704.6,0.1344]
[1753189069674,2.37571843,3704.3,3703.8,0.8158]
[1753189069971,2.37571843,3704.3,3704.2,0.1344]
[1753189070129,2.69956536,3704.3,3704.2,0.25260384]
[1753189070520,5.54751114,3704.3,3704.2,0.25260384]
[1753189071033,6.30931114,3704.3,3704.2,0.25260384]
[1753189072453,10.47031114,3704.3,3704.2,0.25260384]
[1753189073151,9.70851114,3704.3,3704.2,0.25260384]
[1753189073454,6.86056536,3704.3,3704.2,0.25260384]
[1753189073656,21.36056536,3704.3,3704.2,0.25260384]
[1753189073953,18.661,3704.3,3704.2,0.25260384]
[1753189074454,0.1344,3704.5,3704.2,0.25260384]
[1753189074632,3.0,3704.5,3704.3,0.25260384]
[1753189074833,3.0,3704.5,3704.4,0.25260384]
[1753189075148,3.0,3704.5,3704.4,0.25260247]
[1753189075353,3.0,3704.5,3704.1,0.1344]
[1753189075515,4.2954,3704.7,3704.2,2.95223094]
[1753189075718,7.161,3704.6,3704.3,0.25259454]
[1753189076045,7.161,3704.6,3704.4,0.25259454]
[1753189076046,9.86035665,3704.6,3704.4,0.25259454]
[1753189076218,9.86035665,3704.6,3704.5,0.25259454]
[1753189076418,7.161,3704.6,3704.5,0.25259454]
[1753189077035,9.86034675,3704.6,3704.5,0.25259454]
[1753189077358,7.161,3704.6,3704.5,0.25259454]
[1753189077743,0.1344,3704.7,3704.5,0.25259454]
[1753189077949,4.161,3704.7,3704.6,0.25259454]
[1753189079055,6.86027389,3704.7,3704.6,0.25259454]
[1753189079221,7.28877389,3704.7,3704.6,0.25259454]
[1753189080133,6.86027389,3704.7,3704.6,0.25259454]
[1753189080459,8.5146345,3704.7,3704.6,0.25259454]
[1753189081669,7.28877389,3704.7,3704.6,0.25259454]
[1753189081841,3.12777389,3704.7,3704.6,0.25259454]
[1753189082164,7.28877389,3704.7,3704.6,0.25259454]
[1753189082566,2.6995288,3704.4,3704.2,0.1344]
[1753189082737,4.161,3704.5,3704.3,0.2525806]
[1753189082933,3.1364,3704.8,3704.4,0.25257629]
[1753189083137,4.163,3704.8,3704.5,0.70687629]
[1753189083335,4.163,3704.8,3704.6,0.70687629]
[1753189083555,9.86226876,3704.8,3704.7,0.25257629]
[1753189083778,7.163,3704.8,3704.7,0.25257629]
[1753189084242,0.002,3704.8,3704.7,0.25257629]
[1753189085838,2.70120103,3704.8,3704.7,0.25257629]
[1753189087061,0.002,3704.8,3704.7,0.25257629]
[1753189087850,2.70120103,3704.8,3704.7,0.25257629]
[1753189089192,2.70120103,3704.8,3704.4,0.1344]
[1753189089193,0.4305,3704.8,3704.4,0.1344]
[1753189089402,2.69934675,3704.6,3704.5,0.2524695]
[1753189089607,6.26224675,3704.6,3704.5,0.2524695]
[1753189091289,10.42324675,3704.6,3704.5,0.2524695]
[1753189091591,5.83374675,3704.6,3704.5,0.2524695]
[1753189091798,6.26224675,3704.6,3704.5,0.2524695]
[1753189092094,6.26224675,3704.6,3704.5,0.2450895]
[1753189092292,6.26224675,3704.6,3704.0,0.1344]
[1753189092293,2.69970591,3704.2,3704.0,0.1344]
[1753189092505,2.3758091,3704.2,3704.0,0.1344]
[1753189092691,2.69971113,3704.1,3704.0,0.1344]
[1753189094077,2.69966463,3704.2,3704.0,0.1344]
[1753189094292,2.69971113,3704.1,3704.0,0.1344]
[1753189095996,0.4285,3704.1,3703.8,0.1344]
[1753189096562,2.6998569,3703.9,3703.8,0.1344]
[1753189096761,2.6999298,3703.8,3703.7,0.001]
[1753189097082,3.1284298,3703.8,3703.7,0.001]
[1753189097768,2.6999298,3703.8,3703.7,0.001]
[1753189099206,2.69978593,3704.0,3703.7,0.001]
[1753189099378,3.13508593,3704.0,3703.7,0.001]
[1753189099582,2.6998569,3703.9,3703.7,0.001]
[1753189100496,2.6999298,3703.8,3703.7,0.001]
[1753189100899,3.1352298,3703.8,3703.7,0.001]
[1753189101209,4.40481727,3703.8,3703.7,0.001]
[1753189101407,3.1352298,3703.8,3703.7,0.001]
[1753189103904,6.9172298,3703.8,3703.7,0.001]
[1753189111447,6.1352298,3703.8,3703.7,0.001]
[1753189111597,5.6999298,3703.8,3703.7,0.001]
[1753189111980,3.0,3703.8,3703.7,0.001]
[1753189112179,3.0,3703.8,3703.7,0.4659]
[1753189112380,5.6999298,3703.8,3703.7,0.4659]
[1753189112681,3.0,3703.8,3703.7,0.4659]
[1753189113025,2.6999298,3703.8,3703.7,0.4659]
[1753189115017,2.6999298,3703.8,3703.7,0.71814502]
[1753189115684,2.37597268,3703.8,3703.7,0.25324502]
[1753189117033,2.37597268,3703.8,3703.7,0.001]
[1753189117224,2.69979689,3704.0,3703.7,0.7182241]
[1753189117386,2.70168891,3704.2,3703.8,1.0724241]
[1753189117387,2.69986532,3703.9,3703.8,1.0724241]
[1753189117722,2.69986532,3703.9,3703.8,1.53736905]
[1753189117883,2.69986532,3703.9,3703.8,1.53736754]
[1753189118084,2.69981263,3704.0,3703.8,1.53736754]
[1753189118316,2.69981263,3704.0,3703.9,0.25236754]
[1753189118519,2.69976337,3704.1,3703.9,0.25236754]
[1753189118829,0.002,3704.2,3704.0,0.38676754]